bitfinex-derivatives/quotes_SOLF0:USTF0_20250509
["timestamp","ask_amount","ask_price","bid_price","bid_amount"]
[1746778925841,5.9946,166.8,166.71,11.7499007]
[1746778926041,40.06,166.83,166.71,11.7499007]
[1746778926340,5.9945,166.8,166.76,5.9956]
[1746778926640,5.9945,166.8,166.76,40.12]
[1746778926839,397.06,166.85,166.76,40.12]
[1746778927543,5.9944,166.8,166.77,2.0153]
[1746778927741,40.04,166.86,166.77,4.0688]
[1746778928244,361.0946,166.9,166.77,4.0688]
[1746778928441,40.02,166.87,166.77,4.0688]
[1746778928642,5.993,166.84,166.77,4.0688]
[1746778929543,5.9925,166.85,166.77,4.0688]
[1746778929844,4.0847,166.94,166.79,10.3460507]
[1746778930041,40.0,166.93,166.8,40.0]
[1746778930343,40.0,166.93,166.82,5.9933]
[1746778930536,5.9921,166.87,166.82,5.9933]
[1746778930734,4.0847,166.94,166.84,5.9926]
[1746778931041,4.0847,166.94,166.83,10.3460507]
[1746778931241,4.0847,166.94,166.84,4.0041]
[1746778931437,4.0847,166.94,166.84,9.9968]
[1746778931740,5.992,166.87,166.84,4.0041]
[1746778931941,4.0847,166.94,166.84,4.0041]
[1746778932241,5.9915,166.88,166.84,4.0041]
[1746778932444,5.9915,166.88,166.84,9.9967]
[1746778932744,4.0847,166.94,166.84,4.0041]
[1746778932950,39.96,166.97,166.88,5.9911]
[1746778933245,39.96,166.98,166.86,39.96]
[1746778933440,5.9902,166.92,166.86,39.96]
[1746778933641,39.96,166.98,166.86,39.96]
[1746778934145,43.8987,167.0,166.86,39.96]
[1746778934341,374.9604,167.01,166.86,39.96]
[1746778934648,5.9884,166.97,166.92,5.9897]
[1746778934945,51.9112,167.05,166.91,10.3460507]
[1746778935245,1.0619231,167.04,166.91,10.3460507]
[1746778935447,39.94,167.05,166.91,10.3460507]
[1746778935639,39.94,167.05,166.95,5.9888]
[1746778935942,4.0883,167.06,166.95,10.3460507]
[1746778936139,1.8755,167.08,167.01,5.9867]
[1746778936340,39.92,167.11,167.01,5.9867]
[1746778936845,5.9855,167.05,167.01,5.9867]
[1746778937239,5.9855,167.05,167.02,5.9862]
[1746778937439,5.985,167.06,167.02,5.9862]
[1746778937644,39.92,167.11,167.0,4.0281]
[1746778938245,39.92,167.11,167.01,5.9865]
[1746778938441,39.92,167.11,167.0,4.0281]
[1746778938641,10.3460507,167.16,167.0,4.0281]
[1746778938842,84.6579131,167.15,167.0,521.8881]
[1746778939242,84.6579131,167.15,167.03,5.986]
[1746778939445,84.6579131,167.15,167.0,521.8881]
[1746778939748,39.86,167.17,167.0,521.8881]
[1746778939948,5.9841,167.09,167.0,521.8881]
[1746778940347,39.84,167.16,167.04,5.9854]
[1746778940847,39.84,167.16,167.0,521.8881]
[1746778941045,6.0024,167.18,167.01,39.84]
[1746778941241,39.82,167.17,167.01,39.84]
[1746778941437,39.82,167.17,167.01,50.1860507]
[1746778941742,39.82,167.17,167.02,1.19746138]
[1746778942652,39.82,167.17,167.06,5.9849]
[1746778942846,39.82,167.17,167.02,1.19746138]
[1746778943045,39.82,167.17,167.03,39.8]
[1746778943244,5.9825,167.13,167.03,39.8]
[1746778943449,39.82,167.17,167.05,10.3460507]
[1746778943643,39.82,167.17,167.06,3.22577466]
[1746778943944,39.82,167.17,167.06,1.19717466]
[1746778944346,39.82,167.17,167.06,7.18207466]
[1746778944551,39.82,167.17,167.06,1.19717466]
[1746778944850,5.9839,167.09,167.06,7.18207466]
[1746778945049,6.0024,167.18,167.06,1.19717466]
[1746778945246,39.76,167.17,167.06,1.19717466]
[1746778945549,39.76,167.17,167.06,7.18197466]
[1746778945751,39.76,167.17,167.06,1.19717466]
[1746778946351,10.3460507,167.16,167.06,1.19717466]
[1746778946548,39.76,167.17,167.06,1.19717466]
[1746778947355,6.0024,167.18,167.06,1.19717466]
[1746778947649,6.0024,167.18,167.1,5.9833]
[1746778947851,6.0024,167.18,167.06,40.91717466]
[1746778948244,2.0285,167.18,167.06,40.91717466]
[1746778948551,5.9813,167.17,167.13,5.9822]
[1746778949049,5.9814,167.16,167.13,5.9822]
[1746778949249,39.72,167.21,167.09,5.8068]
[1746778949648,5.9822,167.14,167.09,5.8068]
[1746778949847,39.72,167.21,167.09,5.8068]
[1746778950052,39.72,167.21,167.09,3.9306]
[1746778950452,39.72,167.21,167.06,40.91717466]
[1746778950754,39.72,167.21,167.08,5.9841]
[1746778950957,39.72,167.21,167.06,40.91717466]
[1746778951253,5.9829,167.12,167.08,5.9839]
[1746778951453,5.9829,167.12,167.09,1.19695972]
[1746778951651,5.9828,167.12,167.09,1.19695972]
[1746778952055,11.96,167.2,167.09,1.19695972]
[1746778952556,5.9835,167.1,167.09,1.19695972]
[1746778955458,5.985,167.06,167.02,39.62]
[1746778955658,5.985,167.06,167.03,7.18318969]
[1746778955956,6.0034,167.14,167.03,7.18318969]
[1746778955957,6.0034,167.14,167.04,1.197318]
[1746778956158,5.9846,167.07,167.04,7.182918]
[1746778956459,6.0034,167.14,167.04,7.182918]
[1746778956660,5.9844,167.08,167.04,7.182918]
[1746778956861,6.0034,167.14,167.04,1.197318]
[1746778957760,5.9853,167.05,167.04,1.197318]
[1746778958159,5.9852,167.06,167.04,1.197318]
[1746778958360,39.58,167.12,167.04,1.197318]
[1746778958751,363.0034,167.14,167.04,1.197318]
[1746778958961,39.56,167.13,167.04,1.197318]
[1746778959159,5.9848,167.07,167.04,1.197318]
[1746778959459,39.56,167.13,167.04,1.197318]
[1746778960063,39.56,167.13,167.07,5.9844]
[1746778960263,5.9839,167.09,167.04,1.197318]
[1746778960463,3.9564,167.14,167.04,11.5433687]
[1746778960665,39.54,167.17,167.04,11.5433687]
[1746778960870,2.0496,167.19,167.05,3.8059]
[1746778961055,41.5896,167.19,167.06,1.19717466]
[1746778961258,5.9827,167.13,167.06,1.19717466]
[1746778961459,2.0496,167.19,167.12,5.9824]
[1746778961758,2.0496,167.19,167.08,10.3460507]
[1746778961957,2.0496,167.19,167.09,1.19695972]
[1746778962462,5.9835,167.1,167.09,1.19695972]
[1746778963868,5.9833,167.11,167.09,1.19695972]
[1746778964066,39.5,167.16,167.09,1.19695972]
[1746778964465,2.0496,167.19,167.09,1.19695972]
[1746778964668,39.5,167.17,167.09,1.19695972]
[1746778964855,2.0496,167.19,167.12,5.9827]
[1746778965065,41.5296,167.19,167.12,5.9827]
[1746778965363,5.983,167.12,167.09,7.18075972]
[1746778965565,5.983,167.12,167.1,1.19688809]
[1746778965764,41.5296,167.19,167.1,7.18018809]
[1746778965964,5.9827,167.13,167.1,7.18018809]
[1746778966167,41.5296,167.19,167.1,1.19688809]
[1746778966567,5.9831,167.11,167.1,1.19688809]
[1746778967372,5.9829,167.12,167.1,1.19688809]
[1746778967567,41.5296,167.19,167.1,1.19688809]
[1746778968775,5.9821,167.14,167.1,1.19688809]
[1746778968965,39.44,167.18,167.1,1.19688809]
[1746778969168,5.9827,167.13,167.1,1.19688809]
[1746778969473,39.44,167.18,167.1,1.19688809]
[1746778969659,5.9831,167.11,167.1,1.19688809]
[1746778970064,39.44,167.18,167.1,1.19688809]
[1746778971073,39.44,167.18,167.12,5.9825]
[1746778971375,39.44,167.18,167.13,1.19667324]
[1746778972976,3.8805,167.21,167.14,5.982]
[1746778973171,43.2605,167.21,167.15,1.19653006]
[1746778973376,3.8805,167.21,167.15,1.19653006]
[1746778973570,3.8805,167.21,167.15,7.17793006]
[1746778973770,3.8805,167.21,167.15,1.19653006]
[1746778973974,41.406,167.24,167.15,1.19653006]
[1746778974373,2.046,167.24,167.15,1.19653006]
[1746778974573,41.406,167.24,167.15,1.19653006]
[1746778974967,5.9809,167.18,167.15,1.19653006]
[1746778975171,41.406,167.24,167.15,1.19653006]
[1746778976281,41.406,167.24,167.16,5.9812]
[1746778976579,5.9807,167.18,167.17,1.19638691]
[1746778977872,41.406,167.24,167.08,39.42]
[1746778978077,358.0607112,167.23,167.06,1.9832]
[1746778978271,1.0607112,167.22,167.06,1.9832]
[1746778978474,358.0607112,167.22,167.07,1.19710301]
[1746778978780,11.9597,167.21,167.07,7.18150301]
[1746778979077,11.9597,167.21,167.07,1.19710301]
[1746778979474,11.9597,167.21,167.1,5.9832]
[1746778979669,357.0,167.22,167.07,1.19710301]
[1746778979876,357.0,167.22,167.1,5.9834]
[1746778980074,5.9817,167.15,167.1,5.9834]
[1746778980273,357.0,167.22,167.07,1.19710301]
[1746778980484,357.0,167.22,167.11,5.9831]
[1746778980884,357.0,167.22,167.07,1.19710301]
[1746778981083,5.9816,167.16,167.12,5.9827]
[1746778981478,5.9816,167.16,167.12,5.9825]
[1746778981674,357.0,167.22,167.07,1.19710301]
[1746778982581,357.0,167.22,167.11,5.983]
[1746778982779,357.0,167.22,167.12,1.19674485]
[1746778983586,5.9824,167.13,167.12,1.19674485]
[1746778984279,5.9822,167.14,167.12,1.19674485]
[1746778984685,5.9824,167.13,167.12,1.19674485]
[1746778985090,357.0,167.22,167.12,1.19674485]
[1746778985290,5.9824,167.13,167.12,1.19674485]
[1746778987089,41.0622,167.19,167.12,1.19674485]
[1746778988090,5.9824,167.13,167.12,1.19674485]
[1746778989087,5.9821,167.14,167.12,1.19674485]
[1746778989284,41.0622,167.19,167.12,1.19674485]
[1746778990487,368.9553,167.27,167.12,1.19674485]
[1746778990687,6.1108,167.24,167.12,50.68279555]
[1746778990885,6.1108,167.24,167.13,5.9383]
[1746778991292,11.9518,167.32,167.16,10.3460507]
[1746778991487,39.14,167.28,167.16,10.3460507]
[1746778991694,39.14,167.29,167.2,5.9799]
[1746778991997,39.14,167.29,167.21,1.19610071]
[1746778992692,5.9792,167.22,167.21,1.19610071]
[1746778993498,5.9792,167.22,167.21,7.1e-07]
[1746778993694,11.9568,167.25,167.15,1.19653006]
[1746778993887,3.8712,167.24,167.15,1.19653006]
[1746778994091,5.9813,167.16,167.15,1.19653006]
[1746778997695,39.06,167.19,167.15,1.19653006]
[1746778998089,39.04,167.23,167.15,1.19653006]
[1746778998288,5.9803,167.2,167.15,1.19653006]
[1746778998495,39.04,167.23,167.15,7.17823006]
[1746778998696,5.9797,167.21,167.15,1.19653006]
[1746778998892,42.9112,167.24,167.15,1.19653006]
[1746778999093,3.8712,167.24,167.15,1.19653006]
[1746778999288,5.979,167.23,167.18,5.9806]
[1746778999492,3.8712,167.24,167.15,2.19653006]
[1746778999795,5.979,167.23,167.15,2.19653006]
[1746779000195,1.875,167.24,167.15,2.19653006]
[1746779000698,1.875,167.24,167.19,5.9803]
[1746779000899,5.9789,167.23,167.15,2.19653006]
[1746779001195,1.875,167.24,167.15,2.19653006]
[1746779001397,5.9806,167.19,167.15,2.19653006]
[1746779001597,1.875,167.24,167.15,2.19653006]
[1746779001798,1.875,167.24,167.18,5.9806]
[1746779002098,1.875,167.24,167.15,2.19653006]
[1746779002395,5.9785,167.25,167.16,10.3460507]
[1746779002593,1.9145,167.27,167.17,1.19638691]
[1746779002897,1.9145,167.27,167.24,5.9784]
[1746779003099,5.9778,167.26,167.24,5.9784]
[1746779003595,1.9145,167.27,167.17,1.19638691]
[1746779003796,363.002,167.38,167.22,10.3460507]
[1746779003994,11.8432,167.37,167.23,5.6505]
[1746779004197,9.9813,167.37,167.27,10.3460507]
[1746779004500,6.002,167.37,167.28,1.19560019]
[1746779004802,6.002,167.37,167.31,10.3460507]
[1746779005002,6.002,167.42,167.32,6.82961436]
[1746779005203,6.002,167.38,167.33,1.19524293]
[1746779005595,6.002,167.38,167.34,5.9748]
[1746779005797,6.002,167.38,167.35,1.19510008]
[1746779006101,38.92,167.4,167.35,1.19510008]
[1746779006497,38.92,167.4,167.24,16.70314537]
[1746779006697,38.92,167.4,167.25,40.11581464]
[1746779006897,38.92,167.4,167.25,1.19581464]
[1746779007399,5.9771,167.28,167.25,1.19581464]
[1746779007603,16.70314537,167.38,167.25,1.19581464]
[1746779009002,357.0,167.39,167.25,1.19581464]
[1746779009201,5.9769,167.29,167.25,1.19581464]
[1746779009396,38.88,167.38,167.25,1.19581464]
[1746779009798,5.9764,167.3,167.25,1.19581464]
[1746779010003,38.88,167.38,167.25,1.19581464]
[1746779010811,11.9478,167.37,167.25,1.19581464]
[1746779011602,357.0,167.39,167.25,1.19581464]
[1746779011905,38.84,167.38,167.25,1.19581464]
[1746779012101,38.84,167.38,167.26,1.9736]
[1746779012307,38.84,167.38,167.27,1.19567166]
[1746779012508,1.9035,167.42,167.27,56.73881703]
[1746779012695,1.9035,167.42,167.28,3.16920019]
[1746779012898,1.9035,167.42,167.31,5.9759]
[1746779013099,1.9035,167.42,167.32,1.19531436]
[1746779014113,5.9753,167.33,167.32,1.19531436]
[1746779014507,38.82,167.38,167.32,1.19531436]
[1746779014909,397.7035,167.42,167.32,1.19531436]
[1746779015115,1.9035,167.42,167.32,1.19531436]
[1746779015609,5.9728,167.4,167.33,38.8]
[1746779015809,3.8615,167.43,167.34,1.1951715]
[1746779016010,38.8,167.45,167.34,1.1951715]
[1746779016210,38.8,167.45,167.37,5.9737]
[1746779016410,38.8,167.45,167.34,1.1951715]
[1746779016714,38.78,167.46,167.34,1.1951715]
[1746779017006,3.8141,167.48,167.34,1.1951715]
[1746779017211,38.78,167.47,167.35,16.70314537]
[1746779017511,16.70314537,167.45,167.34,1.1951715]
[1746779018016,5.9746,167.35,167.34,1.1951715]
[1746779018510,5.9746,167.35,167.34,7.15e-05]
[1746779019712,5.8797,167.38,167.25,1.9694]
[1746779020112,5.8797,167.38,167.26,5.9775]
[1746779020311,5.8797,167.38,167.25,1.9694]
[1746779020513,5.8797,167.38,167.26,5.9777]
[1746779020811,5.8797,167.38,167.25,1.9694]
[1746779021017,5.8797,167.38,167.26,5.9778]
[1746779021215,5.8797,167.38,167.25,1.9694]
[1746779021813,5.9755,167.33,167.25,1.9694]
[1746779022213,5.8797,167.38,167.29,5.9764]
[1746779022613,5.8797,167.38,167.28,5.9769]
[1746779022811,5.8797,167.38,167.25,1.9694]
[1746779023007,22.58284537,167.38,167.23,516.62]
[1746779023214,16.70314537,167.33,167.24,1.19588615]
[1746779023416,16.70314537,167.33,167.15,517.5]
[1746779023417,16.70314537,167.29,167.16,1.9345]
[1746779023609,44.6377,167.28,167.15,6.9816]
[1746779023811,44.6377,167.28,167.15,1.0]
[1746779024408,16.70314537,167.25,167.15,1.0]
[1746779024806,16.70314537,167.21,167.15,1.0]
[1746779025011,5.9814,167.16,167.06,1.9375]
[1746779025212,38.66,167.19,167.06,1.9375]
[1746779025414,38.66,167.19,167.13,5.9822]
[1746779025611,44.6406,167.19,167.07,1.19710301]
[1746779025909,3.9135,167.28,167.13,16.70314537]
[1746779026106,9.8908,167.28,167.14,43.63070165]
[1746779026312,9.8908,167.28,167.15,1.19653006]
[1746779026519,3.9135,167.28,167.15,3.18913006]
[1746779027511,3.9135,167.28,167.19,5.98]
[1746779027717,3.9135,167.28,167.15,3.18913006]
[1746779028018,16.70314537,167.27,167.15,1.19653006]
[1746779028215,16.70314537,167.23,167.15,1.19653006]
[1746779028407,357.0,167.22,167.05,5.8613]
[1746779028613,16.70314537,167.19,167.1,5.9834]
[1746779028820,1.9124,167.18,167.05,5.8613]
[1746779029215,1.9124,167.18,167.1,5.9833]
[1746779029415,1.9124,167.18,167.05,5.8613]
[1746779029912,7.8934,167.18,167.12,5.9827]
[1746779030116,7.8934,167.18,167.05,7.05854633]
[1746779030618,1.9124,167.18,167.05,7.05854633]
[1746779030813,1.9124,167.18,167.14,5.9817]
[1746779031008,1.9124,167.18,167.07,16.70314537]
[1746779031515,1.9124,167.18,167.15,5.9817]
[1746779031708,38.6,167.22,167.09,38.62]
[1746779032117,38.6,167.22,167.13,5.9821]
[1746779032319,38.6,167.22,167.09,38.62]
[1746779032508,38.6,167.24,167.1,16.70314537]
[1746779032916,5.9793,167.22,167.1,16.70314537]
[1746779033118,38.6,167.24,167.18,5.9806]
[1746779033323,38.6,167.24,167.1,16.70314537]
[1746779033518,5.9789,167.23,167.1,16.70314537]
[1746779033721,38.6,167.24,167.14,16.70314537]
[1746779033921,38.6,167.24,167.15,6.0256]
[1746779034217,44.5788,167.24,167.19,5.9801]
[1746779034417,38.6,167.24,167.15,6.0256]
[1746779034615,44.5578,167.26,167.15,6.0256]
[1746779034817,1.8843,167.27,167.17,16.70314537]
[1746779035418,1.8843,167.27,167.22,5.9789]
[1746779037018,38.56,167.31,167.15,6.0256]
[1746779037217,38.56,167.31,167.17,16.70314537]
[1746779037414,38.56,167.31,167.2,5.9796]
[1746779037614,38.56,167.31,167.17,16.70314537]
[1746779038018,5.9775,167.27,167.22,5.9789]
[1746779038218,38.56,167.31,167.17,55.24314537]
[1746779038422,38.56,167.31,167.17,38.54]
[1746779038721,38.56,167.31,167.21,5.9795]
[1746779038924,38.56,167.31,167.19,16.70314537]
[1746779039119,5.9768,167.29,167.19,16.70314537]
[1746779039323,40.4685,167.33,167.19,16.70314537]
[1746779039624,5.9759,167.32,167.2,1.19617224]
[1746779040220,1.9285,167.33,167.2,1.19617224]
[1746779040726,5.9764,167.3,167.2,1.19617224]
[1746779041023,1.9285,167.33,167.2,1.19617224]
[1746779041328,516.78,167.39,167.23,16.70314537]
[1746779041520,38.52,167.37,167.24,40.5092]
[1746779041722,5.9754,167.33,167.24,40.5092]
[1746779042025,38.52,167.37,167.3,5.9761]
[1746779042228,5.9753,167.33,167.24,40.5092]
[1746779042629,38.5,167.36,167.27,5.9772]
[1746779042825,5.9759,167.32,167.27,5.9772]
[1746779043027,3.8064,167.38,167.24,40.5092]
[1746779043231,42.3064,167.38,167.25,5.978]
[1746779043424,42.3064,167.38,167.24,40.5092]
[1746779043726,42.3064,167.38,167.28,5.977]
[1746779043926,42.3064,167.38,167.24,40.5092]
[1746779044423,42.3064,167.38,167.28,5.977]
[1746779044630,42.3064,167.38,167.24,40.5092]
[1746779044836,3.8064,167.38,167.26,16.70314537]
[1746779045024,42.2664,167.38,167.26,16.70314537]
[1746779045332,42.2664,167.38,167.28,5.977]
[1746779045533,42.2664,167.38,167.25,3.8116]
[1746779045838,1.05973862,167.37,167.2,17.89931761]
[1746779046122,5.9753,167.33,167.24,16.70314537]
[1746779046328,42.2664,167.38,167.25,38.46]
[1746779046523,5.9748,167.35,167.25,38.46]
[1746779046721,1.919,167.38,167.28,16.70314537]
[1746779046919,1.919,167.38,167.31,5.9757]
[1746779047227,1.919,167.38,167.28,16.70314537]
[1746779047428,1.919,167.38,167.3,5.9761]
[1746779047632,5.9748,167.35,167.28,16.70314537]
[1746779048025,5.9752,167.34,167.3,5.9761]
[1746779048426,1.919,167.38,167.24,533.36314537]
[1746779048730,1.919,167.38,167.28,5.977]
[1746779048931,1.919,167.38,167.25,38.42]
[1746779049124,1.919,167.38,167.26,5.9777]
[1746779049519,1.919,167.38,167.24,516.66]
[1746779049727,1.919,167.38,167.28,5.977]
[1746779049928,1.919,167.38,167.24,516.66]
[1746779050128,18.62214537,167.38,167.24,516.66]
[1746779050530,1.05975448,167.37,167.24,516.66]
[1746779050729,38.4,167.36,167.24,516.66]
[1746779051436,5.9778,167.27,167.24,516.66]
[1746779051628,1.915,167.35,167.24,516.66]
[1746779051932,1.915,167.35,167.24,522.6385]
[1746779052129,1.915,167.35,167.24,516.66]
[1746779052437,5.977,167.29,167.25,5.9781]
[1746779052732,1.915,167.35,167.24,516.66]
[1746779053235,5.977,167.29,167.26,5.9777]
[1746779054133,1.915,167.35,167.24,516.66]
[1746779054335,357.0,167.44,167.27,16.70314537]
[1746779054536,38.36,167.42,167.28,40.3049]
[1746779054737,38.36,167.42,167.31,5.9759]
[1746779055139,38.36,167.42,167.28,42.2627]
[1746779055332,38.36,167.42,167.32,5.9754]
[1746779055936,5.9746,167.36,167.32,5.9754]
[1746779056138,38.36,167.42,167.32,5.9754]
[1746779056345,5.9744,167.36,167.32,5.9754]
[1746779056636,38.36,167.42,167.31,5.9758]
[1746779056830,38.36,167.42,167.28,3.9027]
[1746779057337,1.05941794,167.41,167.28,3.9027]
[1746779057536,5.9753,167.34,167.28,3.9027]
[1746779057839,38.32,167.4,167.28,3.9027]
[1746779058036,5.9746,167.35,167.29,1.8713]
[1746779058337,5.9746,167.35,167.32,5.9754]
[1746779058639,5.9606,167.43,167.31,55.02314537]
[1746779059045,5.9737,167.38,167.35,5.9743]
[1746779059343,368.9378,167.51,167.35,16.70314537]
[1746779059544,38.32,167.5,167.35,16.70314537]
[1746779059839,5.9734,167.39,167.35,16.70314537]
[1746779060743,5.9734,167.39,167.36,5.9739]
[1746779060944,5.9734,167.39,167.33,55.00314537]
[1746779061249,38.3,167.44,167.35,5.9745]
[1746779061439,38.3,167.44,167.33,55.00314537]
[1746779061844,38.3,167.44,167.38,5.9732]
[1746779062344,11.9396,167.49,167.33,55.00314537]
[1746779062547,38.28,167.48,167.33,55.00314537]
[1746779062747,5.9726,167.41,167.33,16.70314537]
[1746779062946,5.9726,167.41,167.38,5.9732]
[1746779063147,11.9396,167.49,167.33,16.70314537]
[1746779063343,38.26,167.46,167.34,38.26]
[1746779064047,38.26,167.46,167.39,5.9731]
[1746779064238,5.972,167.43,167.39,5.9731]
[1746779064444,38.26,167.46,167.34,38.26]
[1746779064742,3.8163,167.45,167.33,16.70314537]
[1746779064945,3.8163,167.45,167.32,42.0317]
[1746779065145,2.0547,167.44,167.34,5.9746]
[1746779065344,5.9737,167.38,167.32,42.0317]
[1746779065544,2.0547,167.44,167.32,42.0317]
[1746779065749,5.9735,167.38,167.35,5.9743]
[1746779065951,2.0547,167.44,167.32,42.0317]
[1746779066448,5.9739,167.37,167.34,5.9747]
[1746779066647,2.0547,167.44,167.32,42.0317]
[1746779066849,5.9731,167.4,167.36,5.974]
[1746779067050,2.0547,167.44,167.36,5.974]
[1746779067649,359.0547,167.44,167.31,1.0]
[1746779067846,5.9745,167.36,167.31,1.0]
[1746779068044,5.9745,167.36,167.32,5.9753]
[1746779068244,38.22,167.4,167.32,5.9753]
[1746779068450,5.9748,167.35,167.32,5.9753]
[1746779068852,38.22,167.4,167.33,5.9752]
[1746779069049,5.9743,167.36,167.31,1.0]
[1746779069552,38.2,167.44,167.31,17.70314537]
[1746779069952,5.7491,167.48,167.35,16.70314537]
[1746779070153,38.18,167.47,167.36,1.8807]
[1746779070549,40.0506,167.47,167.36,1.8807]
[1746779071450,11.9349,167.56,167.36,1.8807]
[1746779071651,38.18,167.55,167.39,16.70314537]
[1746779071845,39.23876507,167.55,167.4,38.18]
[1746779072054,11.9357,167.54,167.4,38.18]
[1746779072251,1.05876507,167.54,167.4,38.18]
[1746779072452,38.18,167.55,167.4,38.18]
[1746779072758,5.9708,167.46,167.43,5.9715]
[1746779073152,5.9704,167.47,167.44,5.9711]
[1746779073355,38.16,167.54,167.4,38.18]
[1746779073653,363.155,167.58,167.46,5.9703]
[1746779073953,363.155,167.58,167.4,39.37474313]
[1746779073954,516.28,167.63,167.47,16.70314537]
[1746779074147,5.9666,167.58,167.51,16.70314537]
[1746779074353,5.9666,167.58,167.52,1.9947]
[1746779074553,363.0901,167.64,167.52,1.9947]
[1746779075252,6.0901,167.64,167.52,1.9947]
[1746779075458,44.2101,167.64,167.53,38.12]
[1746779075761,5.9662,167.59,167.55,5.9673]
[1746779076057,44.2101,167.64,167.53,38.12]
[1746779076253,5.9673,167.56,167.53,38.12]
[1746779076454,44.2101,167.64,167.53,38.12]
[1746779076652,44.2101,167.64,167.52,40.1147]
[1746779076850,5.9672,167.56,167.52,46.0831]
[1746779077055,44.2101,167.64,167.52,40.0947]
[1746779077255,44.2101,167.64,167.52,1.9947]
[1746779077856,2.0189,167.64,167.52,1.9947]
[1746779078558,5.966,167.59,167.52,1.9947]
[1746779078760,2.0189,167.64,167.52,1.9947]
[1746779079264,5.9662,167.59,167.52,1.9947]
[1746779079767,5.9664,167.58,167.54,5.9677]
[1746779080169,2.0189,167.64,167.53,38.06]
[1746779080662,5.967,167.57,167.53,44.0281]
[1746779080867,2.0189,167.64,167.52,1.9947]
[1746779081069,2.0189,167.64,167.48,5.21017243]
[1746779081266,5.9687,167.52,167.49,39.23410114]
[1746779082066,38.04,167.61,167.49,39.23410114]
[1746779082266,2.0189,167.64,167.53,5.9681]
[1746779082570,38.02,167.63,167.51,16.70314537]
[1746779082769,38.02,167.63,167.54,5.9675]
[1746779082967,38.02,167.63,167.52,1.19388729]
[1746779083170,5.9663,167.59,167.52,1.19388729]
[1746779083464,38.02,167.63,167.54,5.9677]
[1746779083670,38.02,167.63,167.54,38.02]
[1746779084373,5.9665,167.58,167.54,38.02]
[1746779084571,38.02,167.63,167.55,5.9672]
[1746779084768,38.0,167.66,167.55,7.8271]
[1746779084970,3.7616,167.67,167.55,1.8599]
[1746779085173,3.7616,167.67,167.56,7.8428]
[1746779085569,5.9658,167.6,167.56,7.8428]
[1746779085878,3.7616,167.67,167.56,1.876]
[1746779086075,5.9659,167.6,167.56,1.876]
[1746779086373,38.0,167.68,167.56,1.876]
[1746779086374,37.98,167.68,167.56,1.876]
[1746779086575,5.9655,167.61,167.56,1.876]
[1746779086875,37.98,167.68,167.56,3.7785]
[1746779087377,37.96,167.68,167.56,3.7785]
[1746779087972,37.96,167.68,167.57,5.9666]
[1746779088571,37.96,167.68,167.56,3.7785]
[1746779088873,5.9655,167.61,167.56,3.7785]
[1746779089077,5.9655,167.61,167.57,5.9664]
[1746779089275,37.96,167.68,167.56,3.7785]
[1746779089276,3.9677,167.69,167.56,3.7785]
[1746779089477,37.94,167.68,167.56,3.7785]
[1746779089878,5.966,167.6,167.56,3.7785]
[1746779090078,37.94,167.68,167.56,3.7785]
[1746779090278,37.94,167.68,167.57,5.9666]
[1746779090479,5.9659,167.6,167.56,3.7785]
[1746779090679,37.94,167.68,167.54,37.92]
[1746779091069,37.94,167.68,167.55,1.19367353]
[1746779091273,37.94,167.68,167.56,5.9668]